[Event "Mitropa Cup Open 2019"]
[Site "Radenci"]
[Date "2019.06.01"]
[Round "6.7"]
[White "Mesaros, Florian"]
[Black "Studer, Noel"]
[Result "0-1"]
[ECO "E53"]
[WhiteElo "2439"]
[BlackElo "2517"]
[Annotator "ChessBase"]
[PlyCount "80"]
[EventDate "2019.05.27"]
[EventType "team-tourn"]
[EventCountry "SLO"]
[SourceTitle "playchess.com"]
[Source "ChessBase"]
[SourceQuality "1"]
[WhiteTeam "Austria"]
[BlackTeam "Switzerland"]
[WhiteTeamCountry "AUT"]
[BlackTeamCountry "SUI"]
[TimeControl "40/5400+30:1800+30"]

1. d4 {[%emt 0:00:00]} Nf6 {[%emt 0:00:00]} 2. c4 {[%emt 0:00:00]} e6 {[%emt 0:00:00]} 3. Nc3 {[%emt 0:00:03]} Bb4 {[%emt 0:00:00]} 4. e3 {[%emt 0:00:11]} O-O {[%emt 0:00:08]} 5. Nf3 {[%emt 0:00:15]} c5 {[%emt 0:00:17]} 6. Bd3 {[%emt 0:04:58]} d5 {[%emt 0:00:09]} 7. cxd5 {[%emt 0:02:10]} exd5 {[%emt 0:00:13]} 8. dxc5 {[%emt 0:00:56]} Nbd7 {[%emt 0:00:07]} 9. O-O {[%emt 0:02:02]} Nxc5 {[%emt 0:00:06]} 10. Ne2 {[%emt 0:01:33]} Bg4 {[%emt 0:01:57]} 11. b3 {[%emt 0:06:08]} Nfe4 {[%emt 0:06:38]} 12. Ned4 {[%emt 0:28:31]} Bc3 {[%emt 0:21:25]} 13. Rb1 {[%emt 0:00:53]} Bxd4 {[%emt 0:01:16]} 14. exd4 {[%emt 0:00:41]} Ne6 {[%emt 0:02:01]} 15. Qe1 {[%emt 0:13:58]} Bxf3 {[%emt 0:06:03]} 16. gxf3 {[%emt 0:00:21]} N4g5 {[%emt 0:01:03]} 17. Kg2 {[%emt 0:11:55]} Nxd4 {[%emt 0:11:36]} 18. f4 {[%emt 0:03:05]} Qd7 {[%emt 0:06:46]} 19. f3 {[%emt 0:05:30]} Qh3+ {[%emt 0:08:45]} 20. Kh1 {[%emt 0:00:04]} Ngxf3 {[%emt 0:00:52]} 21. Qg3 {[%emt 0:00:19]} Qxg3 {[%emt 0:03:41]} 22. hxg3 {[%emt 0:00:02]} Rfe8 {[%emt 0:00:03]} 23. Bb2 {[%emt 0:03:20]} Re3 {[%emt 0:01:21]} 24. Rbd1 {[%emt 0:01:57]} Rc8 {[%emt 0:00:35]} 25. Rf2 {[%emt 0:08:26]} Rc6 {[%emt 0:04:06]} 26. Bxd4 {[%emt 0:02:34]} Rh6+ {[%emt 0:09:49]} 27. Kg2 {[%emt 0:00:03]} Rh2+ {[%emt 0:00:03]} 28. Kf1 {[%emt 0:00:06]} Rh1+ {[%emt 0:00:06]} 29. Kg2 {[%emt 0:00:05]} Rxd1 {[%emt 0:00:08]} 30. Bxh7+ {[%emt 0:02:46]} Kxh7 {[%emt 0:00:01]} 31. Bxe3 {[%emt 0:00:02]} Ne1+ {[%emt 0:00:07]} 32. Kh3 {[%emt 0:01:09]} d4 {[%emt 0:00:06]} 33. Bd2 {[%emt 0:00:22]} Nd3 {[%emt 0:00:28]} 34. Re2 {[%emt 0:01:02]} Ra1 {[%emt 0:00:16]} 35. Kg4 {[%emt 0:01:22]} Rxa2 {[%emt 0:00:16]} 36. Rh2+ {[%emt 0:00:30]} Kg8 {[%emt 0:00:27]} 37. Re2 {[%emt 0:00:29]} f6 {[%emt 0:01:54]} 38. Kf5 {[%emt 0:00:35]} Kf7 {[%emt 0:00:10]} 39. Ke4 {[%emt 0:00:35]} Nc5+ {[%emt 0:00:05]} 40. Kxd4 {[%emt 0:00:00]} Rxd2+ {[%emt 0:00:00]} 0-1

[Event "Mitropa Cup Open 2019"]
[Site "Radenci"]
[Date "2019.06.01"]
[Round "6.8"]
[White "Stijve, Theo"]
[Black "Horvath, Dominik"]
[Result "0-1"]
[ECO "C72"]
[WhiteElo "2310"]
[BlackElo "2406"]
[Annotator "ChessBase"]
[PlyCount "120"]
[EventDate "2019.05.27"]
[EventType "team-tourn"]
[EventCountry "SLO"]
[SourceTitle "playchess.com"]
[Source "ChessBase"]
[SourceQuality "1"]
[WhiteTeam "Switzerland"]
[BlackTeam "Austria"]
[WhiteTeamCountry "SUI"]
[BlackTeamCountry "AUT"]
[TimeControl "40/5400+30:1800+30"]

1. e4 {[%emt 0:00:04]} e5 {[%emt 0:00:00]} 2. Nf3 {[%emt 0:00:07]} Nc6 {[%emt 0:00:00]} 3. Bb5 {[%emt 0:00:07]} a6 {[%emt 0:00:00]} 4. Ba4 {[%emt 0:00:07]} d6 {[%emt 0:00:08]} 5. O-O {[%emt 0:01:11]} Bd7 {[%emt 0:00:08]} 6. c3 {[%emt 0:06:34]} g5 {[%emt 0:00:30]} 7. d4 {[%emt 0:03:14]} g4 {[%emt 0:00:21]} 8. Ne1 {[%emt 0:01:40]} h5 {[%emt 0:00:05]} 9. f4 {[%emt 0:03:59]} exd4 {[%emt 0:00:28]} 10. cxd4 {[%emt 0:03:54]} d5 {[%emt 0:00:04]} 11. Nc3 {[%emt 0:11:29]} dxe4 {[%emt 0:01:56]} 12. d5 {[%emt 0:01:57]} Nce7 {[%emt 0:13:56]} 13. Qd4 {[%emt 0:03:17]} f6 {[%emt 0:00:03]} 14. Bb3 {[%emt 0:13:48]} Nf5 {[%emt 0:07:21]} 15. Qxe4+ {[%emt 0:02:07]} Qe7 {[%emt 0:00:20]} 16. Qd3 {[%emt 0:04:47]} Qc5+ {[%emt 0:09:25]} 17. Kh1 {[%emt 0:00:39]} O-O-O {[%emt 0:04:50]} 18. Nc2 {[%emt 0:03:20]} Re8 {[%emt 0:04:33]} 19. Ne4 {[%emt 0:11:21]} Qb6 {[%emt 0:00:58]} 20. Be3 {[%emt 0:03:50]} Bb5 {[%emt 0:10:24]} 21. Bc4 {[%emt 0:08:19]} Bxc4 {[%emt 0:00:50]} 22. Qxc4 {[%emt 0:00:10]} Qb5 {[%emt 0:05:20]} 23. Qxb5 {[%emt 0:04:58]} axb5 {[%emt 0:00:04]} 24. Bc5 {[%emt 0:00:13]} Rxe4 {[%emt 0:01:14]} 25. Bxf8 {[%emt 0:00:10]} Nge7 {[%emt 0:00:02]} 26. Bxe7 {[%emt 0:00:40]} Rxe7 {[%emt 0:03:19]} 27. Rac1 {[%emt 0:08:20]} h4 {[%emt 0:01:11]} 28. Kg1 {[%emt 0:02:16]} Rd8 {[%emt 0:03:17]} 29. Rfd1 {[%emt 0:01:05]} Re4 {[%emt 0:02:33]} 30. Na3 {[%emt 0:00:41]} Nd4 {[%emt 0:02:49]} 31. Kf2 {[%emt 0:00:33]} f5 {[%emt 0:16:10]} 32. Rd2 {[%emt 0:00:30]} g3+ {[%emt 0:01:57]} 33. hxg3 {[%emt 0:00:21]} hxg3+ {[%emt 0:00:04]} 34. Kxg3 {[%emt 0:00:34]} Ne2+ {[%emt 0:00:03]} 35. Rxe2 {[%emt 0:00:08]} Rxe2 {[%emt 0:00:03]} 36. Nxb5 {[%emt 0:00:20]} Rxd5 {[%emt 0:00:11]} 37. Nxc7 {[%emt 0:00:46]} Rd3+ {[%emt 0:00:04]} 38. Kh2 {[%emt 0:00:27]} Kd8 {[%emt 0:01:52]} 39. Nb5 {[%emt 0:00:44]} Rdd2 {[%emt 0:06:39]} 40. Rc5 {[%emt 0:00:00]} Rxg2+ {[%emt 0:00:00]} 41. Kh3 {[%emt 0:02:14]} Rg7 {[%emt 0:00:59]} 42. Rxf5 {[%emt 0:03:00]} Rxb2 {[%emt 0:00:04]} 43. Nd4 {[%emt 0:02:10]} Rh7+ {[%emt 0:07:55]} 44. Kg4 {[%emt 0:00:14]} Rg2+ {[%emt 0:00:03]} 45. Kf3 {[%emt 0:00:12]} Rxa2 {[%emt 0:00:08]} 46. Rb5 {[%emt 0:03:15]} Kc7 {[%emt 0:00:54]} 47. Ke4 {[%emt 0:04:59]} Re7+ {[%emt 0:03:15]} 48. Kd3 {[%emt 0:03:44]} Ra3+ {[%emt 0:01:04]} 49. Nb3 {[%emt 0:02:44]} Kc6 {[%emt 0:01:34]} 50. Rb4 {[%emt 0:01:52]} b5 {[%emt 0:07:15]} 51. Kc3 {[%emt 0:03:49]} Re3+ {[%emt 0:01:34]} 52. Kb2 {[%emt 0:01:53]} Ra4 {[%emt 0:00:37]} 53. Rxa4 {[%emt 0:03:55]} bxa4 {[%emt 0:00:04]} 54. Nd4+ {[%emt 0:01:15]} Kc5 {[%emt 0:00:09]} 55. Nc2 {[%emt 0:00:10]} Rb3+ {[%emt 0:00:47]} 56. Ka2 {[%emt 0:00:19]} Rf3 {[%emt 0:00:05]} 57. Ne1 {[%emt 0:00:55]} Rf2+ {[%emt 0:00:37]} 58. Ka3 {[%emt 0:00:32]} Kc4 {[%emt 0:00:21]} 59. f5 {[%emt 0:00:44]} Kc3 {[%emt 0:00:19]} 60. f6 {[%emt 0:02:14]} Kd2 {[%emt 0:00:03]} 0-1

[Event "Mitropa Cup Open 2019"]
[Site "Radenci"]
[Date "2019.06.01"]
[Round "6.9"]
[White "Perske, Thore"]
[Black "Jovanic, Ognjen"]
[Result "1/2-1/2"]
[ECO "B83"]
[WhiteElo "2456"]
[BlackElo "2511"]
[Annotator "ChessBase"]
[PlyCount "61"]
[EventDate "2019.05.27"]
[EventType "team-tourn"]
[EventCountry "SLO"]
[SourceTitle "playchess.com"]
[Source "ChessBase"]
[SourceQuality "1"]
[WhiteTeam "Germany"]
[BlackTeam "Croatia"]
[WhiteTeamCountry "GER"]
[BlackTeamCountry "CRO"]
[TimeControl "40/5400+30:1800+30"]

1. e4 {[%emt 0:00:00]} c5 {[%emt 0:00:00]} 2. Nf3 {[%emt 0:00:00]} e6 {[%emt 0:00:00]} 3. d4 {[%emt 0:00:00]} cxd4 {[%emt 0:00:05]} 4. Nxd4 {[%emt 0:00:00]} Nc6 {[%emt 0:00:05]} 5. Nc3 {[%emt 0:00:07]} Qc7 {[%emt 0:00:07]} 6. Be3 {[%emt 0:00:07]} Nf6 {[%emt 0:01:29]} 7. Be2 {[%emt 0:07:47]} Be7 {[%emt 0:01:14]} 8. f4 {[%emt 0:06:12]} d6 {[%emt 0:00:59]} 9. O-O {[%emt 0:00:14]} O-O {[%emt 0:01:01]} 10. Kh1 {[%emt 0:01:38]} Nxd4 {[%emt 0:01:02]} 11. Qxd4 {[%emt 0:03:47]} b6 {[%emt 0:00:27]} 12. a4 {[%emt 0:11:28]} Bb7 {[%emt 0:07:53]} 13. Bf3 {[%emt 0:07:31]} Rfd8 {[%emt 0:07:12]} 14. Nb5 {[%emt 0:03:49]} Qb8 {[%emt 0:07:15]} 15. c4 {[%emt 0:02:51]} Nd7 {[%emt 0:02:03]} 16. Qd2 {[%emt 0:07:34]} Nc5 {[%emt 0:06:32]} 17. Qc2 {[%emt 0:00:17]} a6 {[%emt 0:10:37]} 18. Nd4 {[%emt 0:04:14]} Qc7 {[%emt 0:06:54]} 19. f5 {[%emt 0:10:16]} a5 {[%emt 0:03:01]} 20. Nb5 {[%emt 0:02:59]} Qb8 {[%emt 0:02:54]} 21. Bd4 {[%emt 0:04:23]} Bc6 {[%emt 0:09:02]} 22. Nc3 {[%emt 0:01:41]} Qb7 {[%emt 0:01:41]} 23. Rae1 {[%emt 0:01:51]} Re8 {[%emt 0:11:38]} 24. Bxc5 {[%emt 0:16:12]} dxc5 {[%emt 0:01:13]} 25. e5 {[%emt 0:00:51]} Bf8 {[%emt 0:03:58]} 26. f6 {[%emt 0:02:08]} g6 {[%emt 0:00:06]} 27. Bxc6 {[%emt 0:00:51]} Qxc6 {[%emt 0:00:03]} 28. Qe4 {[%emt 0:00:18]} Qxe4 {[%emt 0:01:33]} 29. Nxe4 {[%emt 0:00:04]} Red8 {[%emt 0:00:10]} 30. Rd1 {[%emt 0:02:10]} Bh6 {[%emt 0:01:36]} 31. Rd6 {[%emt 0:00:59]} 1/2-1/2

[Event "Mitropa Cup Open 2019"]
[Site "Radenci"]
[Date "2019.06.01"]
[Round "6.10"]
[White "Kovacevic, Blazimir"]
[Black "Kunin, Vitaly"]
[Result "1/2-1/2"]
[ECO "A20"]
[WhiteElo "2456"]
[BlackElo "2518"]
[Annotator "ChessBase"]
[PlyCount "67"]
[EventDate "2019.05.27"]
[EventType "team-tourn"]
[EventCountry "SLO"]
[SourceTitle "playchess.com"]
[Source "ChessBase"]
[SourceQuality "1"]
[WhiteTeam "CRO"]
[BlackTeam "GER"]
[WhiteTeamCountry "CRO"]
[TimeControl "40/5400+30:1800+30"]

1. g3 {[%emt 0:00:00]} e5 {[%emt 0:00:09]} 2. c4 {[%emt 0:00:00]} Nf6 {[%emt 0:00:20]} 3. Bg2 {[%emt 0:00:00]} d5 {[%emt 0:00:41]} 4. cxd5 {[%emt 0:00:00]} Nxd5 {[%emt 0:00:07]} 5. Nf3 {[%emt 0:01:40]} Nc6 {[%emt 0:00:24]} 6. O-O {[%emt 0:00:09]} Nb6 {[%emt 0:02:37]} 7. b3 {[%emt 0:00:43]} g6 {[%emt 0:03:26]} 8. Nc3 {[%emt 0:07:27]} Bg7 {[%emt 0:05:18]} 9. Ba3 {[%emt 0:04:24]} Be6 {[%emt 0:02:33]} 10. Rc1 {[%emt 0:04:51]} h6 {[%emt 0:04:21]} 11. d3 {[%emt 0:16:12]} Nc8 {[%emt 0:08:36]} 12. e3 {[%emt 0:07:40]} Nd6 {[%emt 0:05:54]} 13. d4 {[%emt 0:05:16]} exd4 {[%emt 0:00:12]} 14. Nxd4 {[%emt 0:02:40]} Nxd4 {[%emt 0:03:31]} 15. exd4 {[%emt 0:00:06]} O-O {[%emt 0:01:03]} 16. Bxd6 {[%emt 0:14:40]} cxd6 {[%emt 0:01:18]} 17. Bxb7 {[%emt 0:00:07]} Rb8 {[%emt 0:00:28]} 18. Bd5 {[%emt 0:02:40]} Bh3 {[%emt 0:02:00]} 19. Re1 {[%emt 0:12:00]} h5 {[%emt 0:16:54]} 20. Bg2 {[%emt 0:05:54]} Bxg2 {[%emt 0:03:01]} 21. Kxg2 {[%emt 0:00:04]} Rb4 {[%emt 0:00:14]} 22. Qf3 {[%emt 0:05:12]} Rxd4 {[%emt 0:02:00]} 23. Nb5 {[%emt 0:01:28]} Rd2 {[%emt 0:00:13]} 24. Nxa7 {[%emt 0:02:53]} Qa5 {[%emt 0:05:32]} 25. Nc6 {[%emt 0:04:24]} Qxa2 {[%emt 0:00:29]} 26. Rcd1 {[%emt 0:00:15]} Rxd1 {[%emt 0:15:35]} 27. Rxd1 {[%emt 0:00:04]} Be5 {[%emt 0:00:18]} 28. Rd5 {[%emt 0:00:57]} Qb2 {[%emt 0:03:58]} 29. Qe3 {[%emt 0:00:28]} Kh7 {[%emt 0:02:41]} 30. Rd2 {[%emt 0:02:00]} Qc1 {[%emt 0:01:00]} 31. Nxe5 {[%emt 0:00:35]} dxe5 {[%emt 0:00:11]} 32. Re2 {[%emt 0:00:13]} Qc7 {[%emt 0:04:14]} 33. Qxe5 {[%emt 0:00:31]} Qb7+ {[%emt 0:00:08]} 34. Qe4 {[%emt 0:00:08]} 1/2-1/2

[Event "Mitropa Cup Open 2019"]
[Site "Radenci"]
[Date "2019.06.01"]
[Round "6.11"]
[White "Lagunow, Raphael"]
[Black "Tica, Sven"]
[Result "1/2-1/2"]
[ECO "D32"]
[WhiteElo "2420"]
[BlackElo "2417"]
[Annotator "ChessBase"]
[PlyCount "73"]
[EventDate "2019.05.27"]
[EventType "team-tourn"]
[EventCountry "SLO"]
[SourceTitle "playchess.com"]
[Source "ChessBase"]
[SourceQuality "1"]
[WhiteTeam "Germany"]
[BlackTeam "Croatia"]
[WhiteTeamCountry "GER"]
[BlackTeamCountry "CRO"]
[TimeControl "40/5400+30:1800+30"]

1. Nf3 {[%emt 0:00:00]} d5 {[%emt 0:00:00]} 2. c4 {[%emt 0:00:00]} e6 {[%emt 0:00:00]} 3. e3 {[%emt 0:00:00]} Nf6 {[%emt 0:00:36]} 4. Nc3 {[%emt 0:00:02]} c5 {[%emt 0:01:26]} 5. cxd5 {[%emt 0:00:18]} exd5 {[%emt 0:00:48]} 6. d4 {[%emt 0:00:35]} a6 {[%emt 0:01:38]} 7. Be2 {[%emt 0:08:07]} Nc6 {[%emt 0:00:32]} 8. O-O {[%emt 0:01:08]} Be7 {[%emt 0:00:30]} 9. b3 {[%emt 0:02:13]} O-O {[%emt 0:00:53]} 10. dxc5 {[%emt 0:01:43]} Bxc5 {[%emt 0:00:07]} 11. Bb2 {[%emt 0:00:05]} Ba7 {[%emt 0:08:26]} 12. Rc1 {[%emt 0:29:30]} Re8 {[%emt 0:17:54]} 13. Na4 {[%emt 0:14:33]} Ne4 {[%emt 0:00:57]} 14. Nd4 {[%emt 0:00:24]} Ne5 {[%emt 0:01:22]} 15. Nc3 {[%emt 0:04:23]} Nf6 {[%emt 0:03:50]} 16. Na4 {[%emt 0:08:06]} Ne4 {[%emt 0:18:49]} 17. Nc3 {[%emt 0:00:14]} Nf6 {[%emt 0:05:52]} 18. Na4 {[%emt 0:03:09]} Qd6 {[%emt 0:01:26]} 19. Nf3 {[%emt 0:02:18]} Nc6 {[%emt 0:01:40]} 20. Bxf6 {[%emt 0:01:45]} gxf6 {[%emt 0:00:07]} 21. Nc3 {[%emt 0:00:11]} Rd8 {[%emt 0:05:37]} 22. Qc2 {[%emt 0:09:49]} Bg4 {[%emt 0:06:12]} 23. Rfd1 {[%emt 0:02:36]} Qe6 {[%emt 0:00:13]} 24. Nd4 {[%emt 0:05:29]} Nxd4 {[%emt 0:04:37]} 25. exd4 {[%emt 0:00:01]} Bf5 {[%emt 0:00:08]} 26. Bd3 {[%emt 0:01:43]} Bg6 {[%emt 0:00:06]} 27. Ne2 {[%emt 0:02:15]} Rac8 {[%emt 0:01:32]} 28. Qd2 {[%emt 0:00:02]} Rxc1 {[%emt 0:00:34]} 29. Rxc1 {[%emt 0:00:27]} Rc8 {[%emt 0:03:12]} 30. Rxc8+ {[%emt 0:02:28]} Qxc8 {[%emt 0:00:05]} 31. h3 {[%emt 0:00:10]} Kg7 {[%emt 0:01:13]} 32. Qe3 {[%emt 0:01:00]} Qe6 {[%emt 0:03:05]} 33. Nf4 {[%emt 0:00:16]} Qb6 {[%emt 0:00:57]} 34. Nxd5 {[%emt 0:01:21]} Qxd4 {[%emt 0:00:07]} 35. Qxd4 {[%emt 0:00:05]} Bxd4 {[%emt 0:00:05]} 36. Nf4 {[%emt 0:00:26]} Be5 {[%emt 0:04:48]} 37. Nxg6 {[%emt 0:00:07]} 1/2-1/2

[Event "Mitropa Cup Open 2019"]
[Site "Radenci"]
[Date "2019.06.01"]
[Round "6.12"]
[White "Srbis, Jurica"]
[Black "Schmidek, Emil"]
[Result "0-1"]
[ECO "E14"]
[WhiteElo "2429"]
[BlackElo "2396"]
[Annotator "ChessBase"]
[PlyCount "78"]
[EventDate "2019.05.27"]
[EventType "team-tourn"]
[EventCountry "SLO"]
[SourceTitle "playchess.com"]
[Source "ChessBase"]
[SourceQuality "1"]
[WhiteTeam "Croatia"]
[BlackTeam "Germany"]
[WhiteTeamCountry "CRO"]
[BlackTeamCountry "GER"]
[TimeControl "40/5400+30:1800+30"]

1. d4 {[%emt 0:00:00]} Nf6 {[%emt 0:00:00]} 2. c4 {[%emt 0:00:00]} e6 {[%emt 0:00:00]} 3. Nf3 {[%emt 0:00:00]} b6 {[%emt 0:00:00]} 4. e3 {[%emt 0:00:14]} Bb7 {[%emt 0:00:06]} 5. Nc3 {[%emt 0:00:11]} d5 {[%emt 0:00:53]} 6. cxd5 {[%emt 0:00:14]} exd5 {[%emt 0:01:14]} 7. Bb5+ {[%emt 0:00:13]} c6 {[%emt 0:01:43]} 8. Bd3 {[%emt 0:00:06]} Be7 {[%emt 0:01:37]} 9. O-O {[%emt 0:03:29]} O-O {[%emt 0:00:44]} 10. Ne5 {[%emt 0:00:48]} c5 {[%emt 0:07:47]} 11. b3 {[%emt 0:27:18]} Nc6 {[%emt 0:18:33]} 12. Bb5 {[%emt 0:20:36]} Nxe5 {[%emt 0:18:07]} 13. dxe5 {[%emt 0:00:09]} Ne8 {[%emt 0:00:45]} 14. Bb2 {[%emt 0:05:31]} d4 {[%emt 0:02:25]} 15. Ne2 {[%emt 0:02:06]} Qd5 {[%emt 0:06:57]} 16. f3 {[%emt 0:07:19]} Qxe5 {[%emt 0:00:16]} 17. exd4 {[%emt 0:01:07]} cxd4 {[%emt 0:03:10]} 18. Bd3 {[%emt 0:00:09]} Bd6 {[%emt 0:07:56]} 19. Ng3 {[%emt 0:00:08]} Qe3+ {[%emt 0:05:26]} 20. Rf2 {[%emt 0:02:20]} g6 {[%emt 0:01:49]} 21. Qf1 {[%emt 0:06:50]} Qf4 {[%emt 0:06:13]} 22. Re1 {[%emt 0:01:31]} Nf6 {[%emt 0:03:24]} 23. Be4 {[%emt 0:01:40]} Nxe4 {[%emt 0:03:54]} 24. fxe4 {[%emt 0:00:02]} Qe5 {[%emt 0:01:22]} 25. Bc1 {[%emt 0:01:44]} Bc5 {[%emt 0:02:47]} 26. Kh1 {[%emt 0:04:18]} d3 {[%emt 0:01:12]} 27. Rf3 {[%emt 0:01:54]} Ba6 {[%emt 0:00:24]} 28. Bd2 {[%emt 0:00:06]} Rad8 {[%emt 0:01:38]} 29. Rc1 {[%emt 0:03:22]} Bd4 {[%emt 0:00:20]} 30. Rc6 {[%emt 0:03:17]} Bb5 {[%emt 0:01:43]} 31. Rcf6 {[%emt 0:00:13]} Bc3 {[%emt 0:00:08]} 32. Qf2 {[%emt 0:03:06]} Bxd2 {[%emt 0:00:32]} 33. Qxd2 {[%emt 0:00:01]} Rd6 {[%emt 0:01:04]} 34. Nh5 {[%emt 0:01:24]} gxh5 {[%emt 0:01:33]} 35. R6f5 {[%emt 0:00:35]} Qg7 {[%emt 0:01:05]} 36. Qf4 {[%emt 0:01:52]} Qa1+ {[%emt 0:00:42]} 37. Rf1 {[%emt 0:00:03]} Qxf1+ {[%emt 0:00:16]} 38. Qxf1 {[%emt 0:00:04]} d2 {[%emt 0:00:05]} 39. Rg5+ {[%emt 0:00:10]} Kh8 {[%emt 0:00:13]} 0-1

[Event "Mitropa Cup Open 2019"]
[Site "Radenci"]
[Date "2019.06.01"]
[Round "6.13"]
[White "Nguyen, Thai Dai Van"]
[Black "Gazik, Viktor"]
[Result "1/2-1/2"]
[ECO "B12"]
[WhiteElo "2548"]
[BlackElo "2520"]
[Annotator "ChessBase"]
[PlyCount "85"]
[EventDate "2019.05.27"]
[EventType "team-tourn"]
[EventCountry "SLO"]
[SourceTitle "playchess.com"]
[Source "ChessBase"]
[SourceQuality "1"]
[WhiteTeam "Czech Republic"]
[BlackTeam "Slovakia"]
[WhiteTeamCountry "CZE"]
[BlackTeamCountry "SVK"]
[TimeControl "40/5400+30:1800+30"]

1. e4 {[%emt 0:00:00]} c6 {[%emt 0:00:00]} 2. d4 {[%emt 0:00:00]} d5 {[%emt 0:00:00]} 3. e5 {[%emt 0:00:00]} Bf5 {[%emt 0:00:00]} 4. Nf3 {[%emt 0:00:14]} e6 {[%emt 0:00:08]} 5. Be2 {[%emt 0:00:04]} Ne7 {[%emt 0:00:27]} 6. O-O {[%emt 0:00:05]} Nd7 {[%emt 0:00:13]} 7. Nbd2 {[%emt 0:00:34]} h6 {[%emt 0:00:06]} 8. Nb3 {[%emt 0:00:03]} g5 {[%emt 0:00:07]} 9. a4 {[%emt 0:01:09]} a5 {[%emt 0:00:11]} 10. Bd2 {[%emt 0:26:34]} Bg7 {[%emt 0:01:24]} 11. c4 {[%emt 0:01:51]} O-O {[%emt 0:07:35]} 12. c5 {[%emt 0:09:28]} f6 {[%emt 0:36:06]} 13. exf6 {[%emt 0:01:39]} Nxf6 {[%emt 0:00:04]} 14. Ne5 {[%emt 0:06:41]} Ne4 {[%emt 0:14:39]} 15. Be3 {[%emt 0:02:48]} Bh7 {[%emt 0:03:32]} 16. Bd3 {[%emt 0:06:39]} Nf5 {[%emt 0:04:30]} 17. Bxe4 {[%emt 0:00:47]} dxe4 {[%emt 0:00:05]} 18. Nc4 {[%emt 0:03:55]} Bg6 {[%emt 0:11:03]} 19. Qc2 {[%emt 0:02:49]} Nh4 {[%emt 0:05:58]} 20. Ne5 {[%emt 0:08:12]} Bh7 {[%emt 0:03:38]} 21. Nd2 {[%emt 0:05:18]} Qe8 {[%emt 0:01:54]} 22. Ndc4 {[%emt 0:02:43]} Rd8 {[%emt 0:04:35]} 23. Qe2 {[%emt 0:02:07]} Rd5 {[%emt 0:01:10]} 24. Ra3 {[%emt 0:01:34]} Nf5 {[%emt 0:01:14]} 25. Rb3 {[%emt 0:04:34]} Rxd4 {[%emt 0:02:06]} 26. Rxb7 {[%emt 0:07:00]} Rd5 {[%emt 0:00:01]} 27. f4 {[%emt 0:00:43]} exf3 {[%emt 0:01:39]} 28. Nxf3 {[%emt 0:00:25]} Nxe3 {[%emt 0:00:33]} 29. Qxe3 {[%emt 0:00:29]} g4 {[%emt 0:00:56]} 30. Nfe5 {[%emt 0:00:16]} Rxf1+ {[%emt 0:00:09]} 31. Kxf1 {[%emt 0:00:02]} Qf8+ {[%emt 0:00:50]} 32. Ke1 {[%emt 0:00:52]} Qf5 {[%emt 0:00:33]} 33. Rb8+ {[%emt 0:02:33]} Bf8 {[%emt 0:00:00]} 34. h3 {[%emt 0:01:22]} Kg7 {[%emt 0:01:03]} 35. Rb7+ {[%emt 0:00:53]} Kg8 {[%emt 0:00:01]} 36. Rb8 {[%emt 0:00:14]} Kg7 {[%emt 0:00:01]} 37. Rb7+ {[%emt 0:02:30]} Kg8 {[%emt 0:00:04]} 38. Rb8 {[%emt 0:03:22]} Kg7 {[%emt 0:00:13]} 39. Rb7+ {[%emt 0:00:28]} Kg8 40. Nxg4 {[%emt 0:00:02]} Qb1+ {[%emt 0:00:06]} 41. Ke2 Qd1+ {[%emt 0:00:32]} 42. Kf2 Bxc5 {[%emt 0:00:02]} 43. Nf6+ {[%emt 0:00:18] Qb1 Ng4 Bf8} 1/2-1/2